[Event "Live Chess"]
[Site "Chess.com"]
[Date "2023.05.20"]
[Round "-"]
[White "hturner40"]
[Black "fso"]
[Result "0-1"]
[WhiteElo "1761"]
[BlackElo "2262"]
[TimeControl "300"]
[EndTime "13:33:11 PDT"]
[Termination "fso won on time"]

1. g3 {[%clk 0:04:51.5]} 1... Nf6 {[%clk 0:04:57.8]} 2. Bg2 {[%clk 0:04:49.3]}
2... e5 {[%clk 0:04:57]} 3. d3 {[%clk 0:04:43.1]} 3... d5 {[%clk 0:04:55.8]} 4.
c4 {[%clk 0:04:41]} 4... c6 {[%clk 0:04:54.6]} 5. cxd5 {[%clk 0:04:38.6]} 5...
cxd5 {[%clk 0:04:54.5]} 6. Nf3 {[%clk 0:04:37]} 6... Bd6 {[%clk 0:04:53.4]} 7.
O-O {[%clk 0:04:34.7]} 7... O-O {[%clk 0:04:52.2]} 8. Nc3 {[%clk 0:04:32.4]}
8... h6 {[%clk 0:04:50.1]} 9. Bd2 {[%clk 0:04:27.6]} 9... Nc6 {[%clk 0:04:48.3]}
10. Rc1 {[%clk 0:04:26.4]} 10... e4 {[%clk 0:04:42.9]} 11. dxe4 {[%clk
0:04:17.6]} 11... dxe4 {[%clk 0:04:42.8]} 12. Ne1 {[%clk 0:04:10.9]} 12... Re8
{[%clk 0:04:41]} 13. e3 {[%clk 0:04:02.1]} 13... Bg4 {[%clk 0:04:28.7]} 14. Qb3
{[%clk 0:03:40.9]} 14... Bb4 {[%clk 0:03:40.2]} 15. Qc2 {[%clk 0:02:51.6]} 15...
Rc8 {[%clk 0:03:26.2]} 16. h3 {[%clk 0:02:22.8]} 16... Be2 {[%clk 0:03:19.1]}
17. Nxe2 {[%clk 0:02:19.4]} 17... Qxd2 {[%clk 0:03:17.4]} 18. Qxd2 {[%clk
0:02:12.1]} 18... Bxd2 {[%clk 0:03:17.3]} 19. Rd1 {[%clk 0:01:50.5]} 19... Red8
{[%clk 0:03:09.2]} 20. Nc2 {[%clk 0:01:46.1]} 20... Ne5 {[%clk 0:03:00.1]} 21.
Ncd4 {[%clk 0:01:40.5]} 21... Ba5 {[%clk 0:02:44.8]} 22. a3 {[%clk 0:01:02.4]}
22... a6 {[%clk 0:02:27.2]} 23. b4 {[%clk 0:00:59.9]} 23... Bb6 {[%clk
0:02:26.5]} 24. Rd2 {[%clk 0:00:38.8]} 24... Nc4 {[%clk 0:02:22]} 25. Ra2 {[%clk
0:00:32.3]} 25... g6 {[%clk 0:02:15]} 26. g4 {[%clk 0:00:16.2]} 26... Ne5 {[%clk
0:02:08.3]} 27. Rd2 {[%clk 0:00:04]} 27... Kg7 {[%clk 0:01:59.2]} 0-1

[Event "Live Chess"]
[Site "Chess.com"]
[Date "2023.05.20"]
[Round "-"]
[White "Bot_Boy"]
[Black "Conradical12"]
[Result "0-1"]
[WhiteElo "324"]
[BlackElo "1580"]
[TimeControl "300"]
[EndTime "13:33:11 PDT"]
[Termination "Conradical12 won by resignation"]

1. e3 {[%clk 0:04:56.4]} 1... e5 {[%clk 0:04:58.7]} 2. Nc3 {[%clk 0:04:51.4]}
2... Nc6 {[%clk 0:04:57.2]} 3. d4 {[%clk 0:04:49.7]} 3... exd4 {[%clk
0:04:55.9]} 4. exd4 {[%clk 0:04:48.3]} 4... d5 {[%clk 0:04:55.8]} 5. Nf3 {[%clk
0:04:46.3]} 5... Nf6 {[%clk 0:04:55.2]} 6. Bb5 {[%clk 0:04:41.1]} 6... Bd6
{[%clk 0:04:53.2]} 7. Bxc6+ {[%clk 0:04:39.7]} 7... bxc6 {[%clk 0:04:52.1]} 8.
Na4 {[%clk 0:04:34.9]} 8... Ba6 {[%clk 0:04:50.4]} 9. Nc5 {[%clk 0:04:00.5]}
9... Bxc5 {[%clk 0:04:47.1]} 10. dxc5 {[%clk 0:03:58.6]} 10... O-O {[%clk
0:04:47]} 11. Be3 {[%clk 0:03:51.2]} 11... Re8 {[%clk 0:04:45.2]} 12. Qd4 {[%clk
0:03:22.2]} 12... Re4 {[%clk 0:04:32]} 13. Qc3 {[%clk 0:02:59.6]} 13... d4
{[%clk 0:04:26.2]} 14. Nxd4 {[%clk 0:02:55.1]} 14... Nd5 {[%clk 0:04:23.9]} 15.
Qa5 {[%clk 0:02:43.5]} 15... Nxe3 {[%clk 0:04:19.2]} 16. fxe3 {[%clk 0:02:38.9]}
16... Qxd4 {[%clk 0:04:16.9]} 17. Qxa6 {[%clk 0:02:19.2]} 17... Qxe3+ {[%clk
0:04:14.7]} 18. Kd1 {[%clk 0:02:04.9]} 18... Rd8+ {[%clk 0:04:08]} 19. Qd3
{[%clk 0:01:57.1]} 19... Red4 {[%clk 0:04:00.4]} 20. Re1 {[%clk 0:01:49.5]}
20... Rxd3+ {[%clk 0:03:55.3]} 21. cxd3 {[%clk 0:01:46.4]} 21... Qxd3+ {[%clk
0:03:55.2]} 22. Kc1 {[%clk 0:01:43.5]} 22... Qd2+ {[%clk 0:03:54.5]} 23. Kb1
{[%clk 0:01:39.1]} 23... Qxe1+ {[%clk 0:03:54.4]} 24. Kc2 {[%clk 0:01:36.2]}
24... Qxa1 {[%clk 0:03:54.3]} 25. Kb3 {[%clk 0:01:34.4]} 25... Qd1+ {[%clk
0:03:53]} 26. Ka3 {[%clk 0:01:32.3]} 26... Rb8 {[%clk 0:03:52.1]} 27. b3 {[%clk
0:01:28.6]} 27... Qc1+ {[%clk 0:03:51.5]} 0-1

[Event "Live Chess"]
[Site "Chess.com"]
[Date "2023.05.20"]
[Round "-"]
[White "defenderalist"]
[Black "parcellforce"]
[Result "1-0"]
[WhiteElo "1599"]
[BlackElo "1383"]
[TimeControl "300"]
[EndTime "13:33:18 PDT"]
[Termination "defenderalist won by checkmate"]

1. d4 {[%clk 0:04:58.1]} 1... d5 {[%clk 0:04:52.9]} 2. c4 {[%clk 0:04:53.2]}
2... e6 {[%clk 0:04:51.4]} 3. Nc3 {[%clk 0:04:51.7]} 3... Nf6 {[%clk 0:04:42.8]}
4. e3 {[%clk 0:04:50]} 4... c5 {[%clk 0:04:42.1]} 5. cxd5 {[%clk 0:04:46.3]}
5... Nxd5 {[%clk 0:04:33.7]} 6. Nxd5 {[%clk 0:04:38.2]} 6... exd5 {[%clk
0:04:33.6]} 7. dxc5 {[%clk 0:04:37.3]} 7... Bxc5 {[%clk 0:04:28.4]} 8. Nf3
{[%clk 0:04:35.2]} 8... Nc6 {[%clk 0:04:26]} 9. Be2 {[%clk 0:04:32.8]} 9... O-O
{[%clk 0:04:24.9]} 10. O-O {[%clk 0:04:31.5]} 10... Re8 {[%clk 0:04:24.4]} 11.
a3 {[%clk 0:04:23.5]} 11... a6 {[%clk 0:04:16.1]} 12. b4 {[%clk 0:04:22.1]}
12... Bb6 {[%clk 0:04:13.2]} 13. Bb2 {[%clk 0:04:21.4]} 13... Bg4 {[%clk
0:03:58.6]} 14. h3 {[%clk 0:04:17.7]} 14... Bxf3 {[%clk 0:03:53.7]} 15. Bxf3
{[%clk 0:04:15.7]} 15... Qd7 {[%clk 0:03:32.8]} 16. Qxd5 {[%clk 0:04:07.2]}
16... Qxd5 {[%clk 0:03:27.1]} 17. Bxd5 {[%clk 0:04:06.2]} 17... Rad8 {[%clk
0:03:26.9]} 18. Bxc6 {[%clk 0:04:03.7]} 18... bxc6 {[%clk 0:03:26.8]} 19. Rad1
{[%clk 0:04:00.1]} 19... h6 {[%clk 0:03:15.3]} 20. Rxd8 {[%clk 0:03:57.2]} 20...
Rxd8 {[%clk 0:03:15.2]} 21. Rc1 {[%clk 0:03:56.3]} 21... Rd6 {[%clk 0:03:06.2]}
22. Be5 {[%clk 0:03:48.3]} 22... Re6 {[%clk 0:03:05.2]} 23. Bd4 {[%clk
0:03:40.8]} 23... Bxd4 {[%clk 0:02:59.9]} 24. exd4 {[%clk 0:03:39.4]} 24... Rd6
{[%clk 0:02:59.8]} 25. Kf1 {[%clk 0:03:33.4]} 25... Kf8 {[%clk 0:02:59]} 26. Ke2
{[%clk 0:03:31.7]} 26... Ke7 {[%clk 0:02:58.6]} 27. Ke3 {[%clk 0:03:29.9]} 27...
Kd7 {[%clk 0:02:58.2]} 28. f3 {[%clk 0:03:24.8]} 28... Re6+ {[%clk 0:02:57.6]}
29. Kd3 {[%clk 0:03:23.1]} 29... Rg6 {[%clk 0:02:57.2]} 30. g4 {[%clk
0:03:21.1]} 30... Rf6 {[%clk 0:02:56.4]} 31. Ke3 {[%clk 0:03:17.6]} 31... Re6+
{[%clk 0:02:55.2]} 32. Kf2 {[%clk 0:03:14.8]} 32... Kd6 {[%clk 0:02:54]} 33. f4
{[%clk 0:03:12.3]} 33... Re4 {[%clk 0:02:50.4]} 34. Kf3 {[%clk 0:02:59.2]} 34...
Rxd4 {[%clk 0:02:49.2]} 35. Rc3 {[%clk 0:02:57.5]} 35... f6 {[%clk 0:02:44.2]}
36. f5 {[%clk 0:02:54.2]} 36... Rd2 {[%clk 0:02:40.3]} 37. Ke3 {[%clk
0:02:46.3]} 37... Rh2 {[%clk 0:02:39.1]} 38. Ke4 {[%clk 0:02:42]} 38... Rd2
{[%clk 0:02:36.7]} 39. Ke3 {[%clk 0:02:25]} 39... Rh2 {[%clk 0:02:33.6]} 40.
Rd3+ {[%clk 0:02:18.4]} 40... Ke5 {[%clk 0:02:29.4]} 41. Rd7 {[%clk 0:02:00.1]}
41... Rxh3+ {[%clk 0:02:27.3]} 42. Kd2 {[%clk 0:01:59.1]} 42... Rxa3 {[%clk
0:02:27.2]} 43. Rxg7 {[%clk 0:01:56.8]} 43... Rb3 {[%clk 0:02:26.8]} 44. Rc7
{[%clk 0:01:48.3]} 44... Rxb4 {[%clk 0:02:25]} 45. Rxc6 {[%clk 0:01:46.3]} 45...
Rxg4 {[%clk 0:02:24.2]} 46. Rxa6 {[%clk 0:01:45.5]} 46... Kxf5 {[%clk
0:02:23.7]} 47. Ke3 {[%clk 0:01:43.7]} 47... Kg5 {[%clk 0:02:22.2]} 48. Kf3
{[%clk 0:01:41.8]} 48... f5 {[%clk 0:02:20.9]} 49. Ra8 {[%clk 0:01:39.9]} 49...
h5 {[%clk 0:02:19.1]} 50. Ra6 {[%clk 0:01:36.6]} 50... h4 {[%clk 0:02:17.5]} 51.
Ra8 {[%clk 0:01:30.7]} 51... Rf4+ {[%clk 0:02:13.2]} 52. Kg2 {[%clk 0:01:29.3]}
52... Kg4 {[%clk 0:01:59.8]} 53. Rg8+ {[%clk 0:01:27.5]} 53... Kh5 {[%clk
0:01:59.2]} 54. Kh3 {[%clk 0:01:20.9]} 54... Rg4 {[%clk 0:01:55.1]} 55. Rh8+
{[%clk 0:01:17.1]} 55... Kg5 {[%clk 0:01:54.1]} 56. Rg8+ {[%clk 0:01:15.7]}
56... Kf4 {[%clk 0:01:49.1]} 57. Ra8 {[%clk 0:01:08.7]} 57... Ke5 {[%clk
0:01:29.8]} 58. Ra5+ {[%clk 0:00:58.2]} 58... Ke4 {[%clk 0:01:29.1]} 59. Ra4+
{[%clk 0:00:56.5]} 59... Kf3 {[%clk 0:01:27.3]} 60. Ra3+ {[%clk 0:00:55.3]}
60... Kf4 {[%clk 0:01:24.4]} 61. Ra4+ {[%clk 0:00:54]} 61... Kg5 {[%clk
0:01:23.9]} 62. Ra8 {[%clk 0:00:51.6]} 62... f4 {[%clk 0:01:20.3]} 63. Rg8+
{[%clk 0:00:48.9]} 63... Kf5 {[%clk 0:01:14.7]} 64. Rxg4 {[%clk 0:00:46.7]}
64... f3 {[%clk 0:01:13]} 65. Rxh4 {[%clk 0:00:44.6]} 65... Kg5 {[%clk
0:01:08.1]} 66. Rh8 {[%clk 0:00:42.9]} 66... Kf4 {[%clk 0:01:06.3]} 67. Kh2
{[%clk 0:00:40]} 67... Ke3 {[%clk 0:01:05.4]} 68. Kg3 {[%clk 0:00:38.3]} 68...
f2 {[%clk 0:00:55.5]} 69. Rf8 {[%clk 0:00:36.8]} 69... f1=N+ {[%clk 0:00:27.8]}
70. Rxf1 {[%clk 0:00:33.9]} 70... Ke4 {[%clk 0:00:27.4]} 71. Rf3 {[%clk
0:00:31.4]} 71... Ke5 {[%clk 0:00:27]} 72. Rf4 {[%clk 0:00:30.6]} 72... Kd5
{[%clk 0:00:26.2]} 73. Kf3 {[%clk 0:00:29.7]} 73... Ke5 {[%clk 0:00:25.8]} 74.
Ke3 {[%clk 0:00:29.2]} 74... Ke6 {[%clk 0:00:25.2]} 75. Ke4 {[%clk 0:00:28]}
75... Kd6 {[%clk 0:00:24.2]} 76. Rf5 {[%clk 0:00:27.4]} 76... Ke6 {[%clk
0:00:23.6]} 77. Kf4 {[%clk 0:00:26.2]} 77... Kd6 {[%clk 0:00:23]} 78. Re5 {[%clk
0:00:25.9]} 78... Kc6 {[%clk 0:00:22.1]} 79. Ke4 {[%clk 0:00:25.5]} 79... Kd6
{[%clk 0:00:21.7]} 80. Kd4 {[%clk 0:00:25.1]} 80... Kc6 {[%clk 0:00:21.2]} 81.
Rd5 {[%clk 0:00:24.3]} 81... Kc7 {[%clk 0:00:20.5]} 82. Kc5 {[%clk 0:00:23.6]}
82... Kb7 {[%clk 0:00:19.7]} 83. Rd6 {[%clk 0:00:22.9]} 83... Kc7 {[%clk
0:00:19]} 84. Kd5 {[%clk 0:00:22.1]} 84... Kb7 {[%clk 0:00:18.9]} 85. Rc6 {[%clk
0:00:21.7]} 85... Kb8 {[%clk 0:00:17.8]} 86. Kc5 {[%clk 0:00:20.9]} 86... Kb7
{[%clk 0:00:17.2]} 87. Kb5 {[%clk 0:00:20.2]} 87... Ka7 {[%clk 0:00:16.6]} 88.
Rc7+ {[%clk 0:00:18.7]} 88... Kb8 {[%clk 0:00:16]} 89. Kb6 {[%clk 0:00:16.7]}
89... Ka8 {[%clk 0:00:15.4]} 90. Rc8# {[%clk 0:00:16.2]} 1-0

[Event "Live Chess"]
[Site "Chess.com"]
[Date "2023.05.20"]
[Round "-"]
[White "Nazar_777"]
[Black "chrisbradgate"]
[Result "1-0"]
[WhiteElo "1579"]
[BlackElo "848"]
[TimeControl "300"]
[EndTime "13:33:18 PDT"]
[Termination "Nazar_777 won by checkmate"]

1. e3 {[%clk 0:04:51.9]} 1... e5 {[%clk 0:04:58.5]} 2. h4 {[%clk 0:04:51.4]}
2... Nc6 {[%clk 0:04:57.8]} 3. a3 {[%clk 0:04:50.8]} 3... d5 {[%clk 0:04:55.9]}
4. c4 {[%clk 0:04:50.2]} 4... dxc4 {[%clk 0:04:53.5]} 5. Bxc4 {[%clk 0:04:49.1]}
5... h6 {[%clk 0:04:51.9]} 6. Qb3 {[%clk 0:04:48.5]} 6... Be6 {[%clk 0:04:34.6]}
7. Bxe6 {[%clk 0:04:47.1]} 7... fxe6 {[%clk 0:04:34.2]} 8. Qxb7 {[%clk
0:04:45.9]} 8... Kd7 {[%clk 0:04:20.9]} 9. Qb3 {[%clk 0:04:42.3]} 9... Nge7
{[%clk 0:04:13.6]} 10. Nf3 {[%clk 0:04:41.1]} 10... Ng6 {[%clk 0:04:00.5]} 11.
Nc3 {[%clk 0:04:40]} 11... Ke8 {[%clk 0:03:57.9]} 12. Qxe6+ {[%clk 0:04:37.7]}
12... Nge7 {[%clk 0:03:50.3]} 13. Ne4 {[%clk 0:04:29.5]} 13... Qd7 {[%clk
0:03:32.3]} 14. Qxd7+ {[%clk 0:04:25]} 14... Kxd7 {[%clk 0:03:31.5]} 15. Nc5+
{[%clk 0:04:23.2]} 15... Ke8 {[%clk 0:03:22.9]} 16. Ne6 {[%clk 0:04:21.2]} 16...
Rc8 {[%clk 0:03:18.7]} 17. b4 {[%clk 0:04:19]} 17... Nd8 {[%clk 0:03:16.1]} 18.
Nxd8 {[%clk 0:04:16.1]} 18... Rxd8 {[%clk 0:03:15.2]} 19. Nxe5 {[%clk
0:04:15.3]} 19... Nc8 {[%clk 0:02:53.8]} 20. h5 {[%clk 0:04:13.8]} 20... Bd6
{[%clk 0:02:42.1]} 21. Ng6 {[%clk 0:04:12]} 21... Rg8 {[%clk 0:02:38.4]} 22. Bb2
{[%clk 0:04:10.9]} 22... Nb6 {[%clk 0:02:33.7]} 23. Be5 {[%clk 0:04:09.3]} 23...
Bxe5 {[%clk 0:02:28.1]} 24. Nxe5 {[%clk 0:04:07.8]} 24... Nd5 {[%clk 0:02:21.7]}
25. d4 {[%clk 0:04:05.6]} 25... Nb6 {[%clk 0:02:07.2]} 26. Rc1 {[%clk
0:04:03.3]} 26... Rc8 {[%clk 0:02:01.1]} 27. Rh4 {[%clk 0:04:01.7]} 27... Rf8
{[%clk 0:01:47.2]} 28. Re4 {[%clk 0:03:56.9]} 28... Kd8 {[%clk 0:01:40.9]} 29.
Nc6+ {[%clk 0:03:50.7]} 29... Kd7 {[%clk 0:01:34.4]} 30. Re7+ {[%clk 0:03:45.6]}
30... Kd6 {[%clk 0:01:30.2]} 31. Rxg7 {[%clk 0:03:35.1]} 31... Nd7 {[%clk
0:01:21.5]} 32. Nxa7 {[%clk 0:03:28.6]} 32... Rce8 {[%clk 0:01:17.4]} 33. Nb5+
{[%clk 0:03:25.1]} 33... Ke6 {[%clk 0:01:09.9]} 34. Nxc7+ {[%clk 0:03:23.3]}
34... Kd6 {[%clk 0:01:07.3]} 35. Nxe8+ {[%clk 0:03:21.9]} 35... Rxe8 {[%clk
0:01:06.4]} 36. b5 {[%clk 0:03:17.8]} 36... Nb6 {[%clk 0:00:56.3]} 37. Rc6+
{[%clk 0:03:15.9]} 37... Kd5 {[%clk 0:00:53.3]} 38. Rxb6 {[%clk 0:03:14.6]}
38... Rc8 {[%clk 0:00:52.1]} 39. Rc6 {[%clk 0:03:12.6]} 39... Rxc6 {[%clk
0:00:50.2]} 40. bxc6 {[%clk 0:03:11.2]} 40... Kxc6 {[%clk 0:00:49.7]} 41. Rg6+
{[%clk 0:03:09.2]} 41... Kd5 {[%clk 0:00:48]} 42. Rxh6 {[%clk 0:03:05.2]} 42...
Kc4 {[%clk 0:00:47.2]} 43. Kd2 {[%clk 0:03:03.4]} 43... Kb3 {[%clk 0:00:44.6]}
44. Rc6 {[%clk 0:03:02]} 44... Kxa3 {[%clk 0:00:43.3]} 45. h6 {[%clk 0:03:01]}
45... Kb4 {[%clk 0:00:42.7]} 46. h7 {[%clk 0:03:00]} 46... Kb5 {[%clk 0:00:42]}
47. Rc1 {[%clk 0:02:58.7]} 47... Kb4 {[%clk 0:00:41.1]} 48. h8=Q {[%clk
0:02:56]} 48... Kb3 {[%clk 0:00:39.2]} 49. Qc8 {[%clk 0:02:54.7]} 49... Kb2
{[%clk 0:00:38.1]} 50. Rc7 {[%clk 0:02:53.8]} 50... Kb3 {[%clk 0:00:36.8]} 51.
Rb7+ {[%clk 0:02:52.8]} 51... Ka4 {[%clk 0:00:36]} 52. Qa8# {[%clk 0:02:47.3]}
1-0

[Event "Live Chess"]
[Site "Chess.com"]
[Date "2023.05.20"]
[Round "-"]
[White "chessfiction"]
[Black "Delacorta"]
[Result "1-0"]
[WhiteElo "2419"]
[BlackElo "1423"]
[TimeControl "300"]
[EndTime "13:33:27 PDT"]
[Termination "chessfiction won by resignation"]

1. e4 {[%clk 0:04:59.5]} 1... e6 {[%clk 0:04:59.1]} 2. d4 {[%clk 0:04:57.9]}
2... d5 {[%clk 0:04:58]} 3. Nc3 {[%clk 0:04:57.3]} 3... dxe4 {[%clk 0:04:56.8]}
4. Nxe4 {[%clk 0:04:57.2]} 4... Bd7 {[%clk 0:04:56.1]} 5. Nf3 {[%clk 0:04:56.1]}
5... Bc6 {[%clk 0:04:55.2]} 6. Bd3 {[%clk 0:04:55.4]} 6... Nd7 {[%clk
0:04:54.2]} 7. Qe2 {[%clk 0:04:54]} 7... Ngf6 {[%clk 0:04:52.1]} 8. Neg5 {[%clk
0:04:53.3]} 8... h6 {[%clk 0:04:43]} 9. Nxe6 {[%clk 0:04:51]} 9... fxe6 {[%clk
0:04:41.5]} 10. Bg6+ {[%clk 0:04:50]} 10... Ke7 {[%clk 0:04:33.7]} 11. Bd2
{[%clk 0:04:49.5]} 11... Be4 {[%clk 0:04:27.2]} 12. Bxe4 {[%clk 0:04:46.6]} 1-0

[Event "Live Chess"]
[Site "Chess.com"]
[Date "2023.05.20"]
[Round "-"]
[White "jk0110"]
[Black "birdseed45"]
[Result "0-1"]
[WhiteElo "1091"]
[BlackElo "1874"]
[TimeControl "300"]
[EndTime "13:33:30 PDT"]
[Termination "birdseed45 won on time"]

1. e4 {[%clk 0:04:54.5]} 1... c5 {[%clk 0:04:58.8]} 2. b4 {[%clk 0:04:51.5]}
2... cxb4 {[%clk 0:04:56.3]} 3. d4 {[%clk 0:04:48.1]} 3... Nc6 {[%clk
0:04:54.3]} 4. a3 {[%clk 0:04:41]} 4... bxa3 {[%clk 0:04:52.5]} 5. Bxa3 {[%clk
0:04:38]} 5... d5 {[%clk 0:04:51.9]} 6. e5 {[%clk 0:04:35.7]} 6... e6 {[%clk
0:04:46.5]} 7. Bxf8 {[%clk 0:04:33.5]} 7... Kxf8 {[%clk 0:04:46.4]} 8. Nf3
{[%clk 0:04:30.2]} 8... Nge7 {[%clk 0:04:44.8]} 9. c3 {[%clk 0:04:23.9]} 9... g6
{[%clk 0:04:39.4]} 10. Bd3 {[%clk 0:03:54]} 10... Kg7 {[%clk 0:04:28.1]} 11. h4
{[%clk 0:03:34.6]} 11... h5 {[%clk 0:04:23.6]} 12. Ng5 {[%clk 0:03:29.4]} 12...
Qb6 {[%clk 0:04:11.9]} 13. Qf3 {[%clk 0:03:11.2]} 13... Nf5 {[%clk 0:04:09.3]}
14. Bxf5 {[%clk 0:03:03.5]} 14... exf5 {[%clk 0:04:09.2]} 15. Qxd5 {[%clk
0:02:22.3]} 15... Rf8 {[%clk 0:04:05.9]} 16. O-O {[%clk 0:02:11.2]} 16... Ne7
{[%clk 0:04:01.6]} 17. Qc4 {[%clk 0:01:39.9]} 17... Be6 {[%clk 0:03:58.4]} 18.
Qd3 {[%clk 0:01:32.1]} 18... Nd5 {[%clk 0:03:53.1]} 19. Nd2 {[%clk 0:01:07.8]}
19... Rac8 {[%clk 0:03:37.2]} 20. Nxe6+ {[%clk 0:01:04.5]} 20... fxe6 {[%clk
0:03:33.5]} 21. Rfc1 {[%clk 0:00:44.7]} 21... Rfd8 {[%clk 0:03:16.2]} 22. Rab1
{[%clk 0:00:42.7]} 22... Qc7 {[%clk 0:02:59.8]} 23. c4 {[%clk 0:00:39.5]} 23...
Nb6 {[%clk 0:02:56.5]} 24. c5 {[%clk 0:00:23.9]} 24... Nd5 {[%clk 0:02:52]} 25.
Nf3 {[%clk 0:00:22.6]} 25... a6 {[%clk 0:02:37.1]} 26. Ng5 {[%clk 0:00:21.5]}
26... Qe7 {[%clk 0:02:30.4]} 27. Rb3 {[%clk 0:00:12.5]} 27... b6 {[%clk
0:02:23.7]} 28. Qxa6 {[%clk 0:00:06.8]} 28... bxc5 {[%clk 0:02:19.4]} 29. Nxe6+
{[%clk 0:00:03]} 29... Kf7 {[%clk 0:02:15]} 30. Nxd8+ {[%clk 0:00:01.8]} 30...
Rxd8 {[%clk 0:02:14.4]} 0-1

[Event "Live Chess"]
[Site "Chess.com"]
[Date "2023.05.20"]
[Round "-"]
[White "FlyingChessKestrel13"]
[Black "MrBlond89"]
[Result "0-1"]
[WhiteElo "2105"]
[BlackElo "1453"]
[TimeControl "300"]
[EndTime "13:33:33 PDT"]
[Termination "MrBlond89 won by checkmate"]

1. e4 {[%clk 0:04:56.7]} 1... e5 {[%clk 0:04:58.8]} 2. d4 {[%clk 0:04:53.1]}
2... exd4 {[%clk 0:04:55.4]} 3. c3 {[%clk 0:04:52]} 3... dxc3 {[%clk 0:04:53.6]}
4. Bc4 {[%clk 0:04:50.9]} 4... cxb2 {[%clk 0:04:52.2]} 5. Bxb2 {[%clk
0:04:49.9]} 5... Nc6 {[%clk 0:04:40.1]} 6. Nf3 {[%clk 0:04:36.6]} 6... Bb4+
{[%clk 0:04:36.4]} 7. Kf1 {[%clk 0:04:34.7]} 7... Nf6 {[%clk 0:04:18.9]} 8. e5
{[%clk 0:04:30.3]} 8... Ng8 {[%clk 0:03:17.4]} 9. Qd5 {[%clk 0:03:43.8]} 9...
Qe7 {[%clk 0:02:56.6]} 10. a3 {[%clk 0:03:26.1]} 10... Ba5 {[%clk 0:02:48]} 11.
Ng5 {[%clk 0:03:04.1]} 11... Nh6 {[%clk 0:02:44.3]} 12. h4 {[%clk 0:02:50.8]}
12... O-O {[%clk 0:02:29.1]} 13. Qd3 {[%clk 0:02:36.6]} 13... g6 {[%clk
0:01:53.8]} 14. Qg3 {[%clk 0:02:28.1]} 14... Re8 {[%clk 0:01:44.6]} 15. f4
{[%clk 0:02:24.3]} 15... d5 {[%clk 0:01:38.8]} 16. exd6 {[%clk 0:02:22.2]} 16...
Qe1+ {[%clk 0:01:30.9]} 17. Qxe1 {[%clk 0:02:20.3]} 17... Rxe1+ {[%clk 0:01:30]}
18. Kf2 {[%clk 0:02:17.7]} 18... Rxh1 {[%clk 0:01:26.1]} 19. Bf1 {[%clk
0:01:53.5]} 19... Nf5 {[%clk 0:01:13.7]} 20. Bc4 {[%clk 0:01:45.3]} 20... Be6
{[%clk 0:00:58.2]} 21. Nxe6 {[%clk 0:01:42.8]} 21... fxe6 {[%clk 0:00:58.1]} 22.
Bxe6+ {[%clk 0:01:41.1]} 22... Kf8 {[%clk 0:00:36.9]} 23. d7 {[%clk 0:01:27.6]}
23... Ncd4 {[%clk 0:00:31.8]} 24. Bc4 {[%clk 0:01:13.9]} 24... Be1# {[%clk
0:00:27.1]} 0-1

[Event "Live Chess"]
[Site "Chess.com"]
[Date "2023.05.20"]
[Round "-"]
[White "trekker123"]
[Black "anatoliy10912"]
[Result "1-0"]
[WhiteElo "2086"]
[BlackElo "1548"]
[TimeControl "300"]
[EndTime "13:33:49 PDT"]
[Termination "trekker123 won by resignation"]

1. d4 {[%clk 0:04:57]} 1... d5 {[%clk 0:04:59.1]} 2. Nf3 {[%clk 0:04:55]} 2...
e6 {[%clk 0:04:58]} 3. c4 {[%clk 0:04:53.8]} 3... c5 {[%clk 0:04:55]} 4. cxd5
{[%clk 0:04:52.1]} 4... exd5 {[%clk 0:04:51.8]} 5. Nc3 {[%clk 0:04:50.6]} 5...
Be6 {[%clk 0:04:43.1]} 6. g3 {[%clk 0:04:45.8]} 6... Nf6 {[%clk 0:04:40.9]} 7.
Bg2 {[%clk 0:04:44.4]} 7... Nc6 {[%clk 0:04:38.7]} 8. O-O {[%clk 0:04:42.4]}
8... Qb6 {[%clk 0:04:35.7]} 9. Na4 {[%clk 0:04:37.7]} 9... Qa5 {[%clk 0:04:31]}
10. Bd2 {[%clk 0:04:26]} 10... Qc7 {[%clk 0:04:29.1]} 11. Nxc5 {[%clk
0:04:21.9]} 11... Nxd4 {[%clk 0:04:28.1]} 12. Qa4+ {[%clk 0:03:58.3]} 12... Nc6
{[%clk 0:04:25.4]} 13. Nxe6 {[%clk 0:03:47.2]} 13... fxe6 {[%clk 0:04:25.3]} 14.
Rac1 {[%clk 0:03:42.7]} 14... Kf7 {[%clk 0:04:10.9]} 15. Ng5+ {[%clk 0:03:28.9]}
15... Kg6 {[%clk 0:04:01.7]} 16. Nxe6 {[%clk 0:03:24.8]} 16... Qe5 {[%clk
0:03:57.6]} 17. Nf4+ {[%clk 0:03:18.1]} 17... Kf7 {[%clk 0:03:55.1]} 18. Bc3
{[%clk 0:03:15.3]} 1-0